bitfinex/quotes_BTCUSD_20250505
["timestamp","ask_amount","ask_price","bid_price","bid_amount"]
[1746403949434,0.6758233,94696.0,94695.0,0.58848723]
[1746403949644,0.6758233,94696.0,94695.0,0.59448723]
[1746403949866,0.6758233,94696.0,94695.0,0.58848723]
[1746403950186,0.6758233,94696.0,94695.0,0.59448723]
[1746403951191,0.6758233,94696.0,94695.0,0.48288723]
[1746403952373,0.6758233,94696.0,94695.0,0.42908076]
[1746403952793,0.6758233,94696.0,94695.0,0.43308076]
[1746403952950,0.6758233,94696.0,94695.0,0.42908076]
[1746403953338,0.6758233,94696.0,94695.0,0.43308076]
[1746403953556,0.6758233,94696.0,94695.0,0.42908076]
[1746403954383,0.6758233,94696.0,94695.0,0.43308076]
[1746403955237,0.6758233,94696.0,94695.0,0.42908076]
[1746403955551,0.6758233,94696.0,94695.0,0.43308076]
[1746403956137,0.65926226,94696.0,94695.0,0.43308076]
[1746403957340,0.65926226,94696.0,94695.0,0.54458076]
[1746403958090,0.22176226,94696.0,94695.0,0.54458076]
[1746403958283,0.16874226,94696.0,94695.0,0.54458076]
[1746403958471,0.17930236,94696.0,94695.0,0.54458076]
[1746403958928,0.17930236,94696.0,94695.0,0.54058076]
[1746403959105,0.19586165,94696.0,94695.0,0.54058076]
[1746403959302,0.19586165,94696.0,94695.0,0.54458076]
[1746403959504,0.19586165,94696.0,94695.0,0.54058076]
[1746403959828,0.19586165,94696.0,94695.0,0.55058076]
[1746403960052,0.19586165,94696.0,94695.0,0.54058076]
[1746403960457,0.19586165,94696.0,94695.0,0.55058076]
[1746403960865,0.19586165,94696.0,94695.0,0.59837819]
[1746403961609,0.19586165,94696.0,94695.0,0.58837819]
[1746403961866,0.19586165,94696.0,94695.0,0.59837819]
[1746403962549,0.19586165,94696.0,94695.0,0.58837819]
[1746403962959,0.19586165,94696.0,94695.0,0.59937819]
[1746403966258,0.17930236,94696.0,94695.0,0.59937819]
[1746403967760,0.17930236,94696.0,94695.0,0.63117619]
[1746403968689,0.22176226,94696.0,94695.0,0.63117619]
[1746403969337,0.23832147,94696.0,94695.0,0.63117619]
[1746403970230,0.01655921,94696.0,94695.0,0.84238058]
[1746403971016,0.00045684,94704.0,94703.0,0.12604085]
[1746403971202,0.01055888,94707.0,94706.0,0.12604085]
[1746403971402,0.01055888,94707.0,94706.0,0.13093768]
[1746403971603,0.01055888,94707.0,94706.0,0.16273068]
[1746403971803,0.02711679,94707.0,94706.0,0.16273068]
[1746403972518,0.02711679,94707.0,94706.0,0.17073068]
[1746403973143,0.36711679,94707.0,94706.0,0.17073068]
[1746403974074,0.01655791,94707.0,94706.0,0.22801485]
[1746403974250,0.22773554,94707.0,94706.0,0.22801485]
[1746403975329,0.21117763,94707.0,94706.0,0.22801485]
[1746403977519,0.35055877,94708.0,94707.0,0.12604085]
[1746403977968,0.35055877,94708.0,94707.0,0.13087581]
[1746403978174,0.22166448,94738.0,94733.0,0.01454085]
[1746403978372,0.22166448,94738.0,94735.0,0.12604085]
[1746403978373,0.01055542,94738.0,94735.0,0.12604085]
[1746403978519,0.21111075,94737.0,94735.0,0.12604085]
[1746403979076,0.21111075,94737.0,94736.0,0.1626107]
[1746403979656,0.21115644,94737.0,94736.0,0.1626107]
[1746403980267,4.569e-05,94737.0,94736.0,0.21989487]
[1746403981130,0.34004569,94737.0,94736.0,0.21989487]
[1746403981343,0.34004569,94737.0,94736.0,0.21235402]
[1746403981536,0.34004569,94737.0,94736.0,0.22689487]
[1746403984313,0.01055108,94777.0,94772.0,0.01055163]
[1746403984517,0.01055108,94777.0,94776.0,0.12604085]
[1746403984518,0.21102166,94777.0,94776.0,0.12604085]
[1746403984959,0.21102166,94777.0,94776.0,0.15780885]
[1746403985165,0.22756664,94777.0,94776.0,0.16240405]
[1746403986027,0.21102166,94777.0,94776.0,0.16240405]
[1746403987040,0.21102166,94777.0,94776.0,0.17240405]
[1746403987240,0.55102166,94777.0,94776.0,0.17240405]
[1746403987543,0.55102166,94777.0,94776.0,0.16780885]
[1746403988216,0.56756711,94777.0,94776.0,0.16780885]
[1746403992027,0.53447722,94777.0,94776.0,0.16780885]
[1746403994006,0.01654545,94777.0,94776.0,0.16780885]
[1746403994207,0.01654545,94777.0,94776.0,0.37883273]
[1746403994374,0.01654545,94777.0,94776.0,0.38311836]
[1746403995091,0.01654545,94777.0,94776.0,0.17209448]
[1746403995324,0.01654545,94777.0,94776.0,0.15755363]
[1746403995945,0.01654545,94777.0,94776.0,0.17209448]
[1746403996111,0.21102045,94778.0,94777.0,0.01454085]
[1746403996325,0.21102045,94778.0,94777.0,0.12604085]
[1746403996538,0.21102045,94778.0,94777.0,0.13001644]
[1746403997152,0.55102045,94778.0,94777.0,0.13001644]
[1746403997588,0.52687788,94778.0,94777.0,0.12604085]
[1746403997913,0.52687788,94778.0,94777.0,0.01]
[1746403998121,0.57647788,94778.0,94777.0,0.01]
[1746403998328,0.62197788,94778.0,94777.0,0.01]
[1746403998932,0.55102834,94774.0,94773.0,0.01454085]
[1746403999132,0.55102834,94774.0,94773.0,0.12604085]
[1746403999346,0.55102834,94774.0,94773.0,0.10949565]
[1746404000629,0.56757367,94774.0,94773.0,0.10949565]
[1746404000829,0.56757367,94774.0,94773.0,0.11549565]
[1746404001237,0.56757367,94774.0,94773.0,0.1300365]
[1746404002223,0.56707367,94774.0,94773.0,0.1300365]
[1746404006010,0.56707367,94774.0,94773.0,1.1300365]
[1746404006209,0.55052834,94774.0,94773.0,1.1300365]
[1746404008669,0.55052834,94774.0,94773.0,1.18727498]
[1746404009167,0.56707351,94774.0,94773.0,1.18727498]
[1746404012713,0.52453,94774.0,94773.0,1.18727498]
[1746404014318,0.49144061,94774.0,94773.0,1.18727498]
[1746404015547,0.01654517,94774.0,94773.0,1.18727498]
[1746404015752,0.01055108,94777.0,94776.0,0.12203215]
[1746404016813,0.22156903,94779.0,94776.0,0.12903215]
[1746404017035,0.01055063,94781.0,94776.0,0.12903215]
[1746404017194,0.55100791,94784.0,94783.0,0.12203215]
[1746404017395,0.55100607,94784.0,94783.0,0.12203215]
[1746404018565,0.21098915,94792.0,94788.0,0.12203215]
[1746404018709,0.56154202,94791.0,94788.0,0.12203215]
[1746404019157,0.34113718,94789.0,94788.0,0.12203215]
[1746404019364,0.35768032,94789.0,94788.0,0.12203215]
[1746404019981,0.35768032,94789.0,94788.0,0.12703215]
[1746404020893,0.35768032,94789.0,94788.0,0.15879815]
[1746404022322,0.35768032,94789.0,94788.0,0.25595378]
[1746404024269,0.01768032,94789.0,94788.0,0.25595378]
[1746404024753,0.01768032,94789.0,94788.0,0.25095378]
[1746404025458,0.01768032,94789.0,94788.0,0.25795378]
[1746404025661,0.01768032,94789.0,94788.0,0.20833302]
[1746404026066,0.22867526,94789.0,94788.0,0.20833302]
[1746404026210,0.00113718,94789.0,94788.0,0.20833302]
[1746404029138,0.19668409,94791.0,94789.0,0.01454085]
[1746404029338,0.19668409,94791.0,94790.0,0.12203215]
[1746404029888,0.21322639,94791.0,94790.0,0.12203215]
[1746404030085,0.22377591,94791.0,94790.0,0.12203215]
[1746404031079,0.22377591,94791.0,94790.0,0.12803215]
[1746404033454,0.02709182,94791.0,94790.0,0.12803215]
[1746404033670,0.02709182,94791.0,94790.0,0.15979715]
[1746404033878,0.23808231,94791.0,94790.0,0.15979715]
[1746404034732,0.23808231,94791.0,94790.0,0.20733202]
[1746404035398,0.21554892,94791.0,94790.0,0.20733202]
[1746404035578,0.23209132,94791.0,94790.0,0.20733202]
[1746404035979,0.21554892,94791.0,94790.0,0.20733202]
[1746404036400,0.26134892,94791.0,94790.0,0.19279117]
[1746404036571,0.26134892,94791.0,94790.0,0.20733202]
[1746404037295,0.26134892,94791.0,94790.0,0.19279117]
[1746404037499,0.26134892,94791.0,94790.0,0.20733202]
[1746404038822,0.27789178,94791.0,94790.0,0.20733202]
[1746404045176,0.27789178,94791.0,94790.0,0.20505202]
[1746404046232,0.26134892,94791.0,94790.0,0.20505202]
[1746404048140,0.60134892,94791.0,94790.0,0.20505202]
[1746404049286,0.61789216,94791.0,94790.0,0.20505202]
[1746404052881,0.61789216,94791.0,94790.0,0.2622905]
[1746404053064,0.57209216,94791.0,94790.0,0.2622905]
[1746404053451,0.35654324,94791.0,94790.0,0.2622905]
[1746404055541,0.35654324,94791.0,94790.0,0.29201217]
[1746404056021,0.35638365,94791.0,94790.0,0.29201217]
[1746404056317,0.33984041,94791.0,94790.0,0.29201217]
[1746404058742,0.21099005,94792.0,94791.0,0.1154678]
[1746404058989,0.21099005,94792.0,94791.0,0.17270628]
[1746404059216,0.22753269,94792.0,94791.0,0.17270628]
[1746404060773,0.22753269,94792.0,94791.0,0.17870628]
[1746404061895,0.18500085,94792.0,94791.0,0.17870628]
[1746404062320,0.23200085,94792.0,94791.0,0.16416543]
[1746404062527,0.23200085,94792.0,94791.0,0.17870628]
[1746404064251,0.23200085,94792.0,94791.0,0.22624115]
[1746404066453,0.21545821,94792.0,94791.0,0.22624115]
[1746404069052,0.21545821,94792.0,94791.0,0.1253142]
[1746404069671,0.26055821,94792.0,94791.0,0.1253142]
[1746404070711,0.27710162,94792.0,94791.0,0.1253142]
[1746404075432,0.27710162,94792.0,94791.0,0.1193142]
[1746404075845,0.27710162,94792.0,94791.0,0.1253142]
[1746404076177,0.26055821,94792.0,94791.0,0.1253142]
[1746404076807,0.29531658,94814.0,94791.0,0.1253142]
[1746404077007,0.00263734,94797.0,94791.0,0.1253142]
[1746404077799,0.0105493,94793.0,94791.0,0.1253142]
[1746404078359,0.21099005,94792.0,94791.0,0.1253142]
[1746404078537,0.21099005,94792.0,94791.0,0.1193142]
[1746404078735,0.21099005,94792.0,94791.0,0.07677933]
[1746404078904,0.21099005,94792.0,94791.0,0.07177933]
[1746404079105,0.22753344,94792.0,94791.0,0.07177933]
[1746404079450,0.22753344,94792.0,94791.0,0.07777933]
[1746404079640,0.22753344,94792.0,94791.0,0.07177933]
[1746404079865,0.22753344,94792.0,94791.0,0.07777933]
[1746404086242,0.21099005,94792.0,94791.0,0.07777933]
[1746404089178,0.21099005,94792.0,94791.0,0.1255583]
[1746404089332,0.22753342,94792.0,94791.0,0.1255583]
[1746404090092,0.19444618,94792.0,94791.0,0.1255583]
[1746404097831,0.40367244,94792.0,94791.0,0.00377897]
[1746404098012,0.21102834,94774.0,94773.0,1.0]
[1746404099465,0.21102834,94774.0,94773.0,1.004]
[1746404100905,0.22757675,94774.0,94773.0,1.004]
[1746404105408,0.22757675,94774.0,94773.0,1.0]
[1746404105658,0.22757675,94774.0,94773.0,1.002]
[1746404106824,0.21102834,94774.0,94773.0,1.01654085]
[1746404107627,0.21102834,94774.0,94773.0,1.002]
[1746404107852,0.21102834,94774.0,94773.0,1.0]
[1746404108052,0.21102834,94774.0,94773.0,1.002]
[1746404108509,0.21102834,94774.0,94773.0,1.0]
[1746404109210,0.21102834,94774.0,94773.0,1.003]
[1746404109411,0.21102834,94774.0,94773.0,1.0]
[1746404109913,0.22757631,94774.0,94773.0,1.003]
[1746404110233,0.21102834,94774.0,94773.0,0.98645203]
[1746404111084,0.21102834,94774.0,94773.0,0.98345203]
[1746404111285,0.21102834,94774.0,94773.0,0.98445203]
[1746404111693,0.21102834,94774.0,94773.0,0.98345203]
[1746404111890,0.21102834,94774.0,94773.0,0.98445203]
[1746404113384,0.22757631,94774.0,94773.0,0.98445203]
[1746404116223,0.21102834,94774.0,94773.0,0.98445203]
[1746404116429,0.21202834,94774.0,94773.0,1.01999288]
[1746404117010,0.21102834,94774.0,94773.0,0.99899288]
[1746404117312,0.15802834,94774.0,94773.0,0.99799288]
[1746404117534,0.15902834,94774.0,94773.0,1.01899288]
[1746404117739,0.15902834,94774.0,94773.0,1.06579288]
[1746404118146,0.15902834,94774.0,94773.0,1.12303136]
[1746404118147,0.001,94774.0,94773.0,1.12303136]
[1746404118359,0.21101943,94778.0,94774.0,0.01454085]
[1746404118562,0.01055052,94782.0,94774.0,0.01454085]
[1746404118563,0.21102591,94776.0,94774.0,0.01454085]
[1746404119228,0.22757084,94776.0,94774.0,0.01454085]
[1746404119693,0.22757084,94776.0,94774.0,0.03454085]
[1746404121767,0.22757084,94776.0,94774.0,0.03754085]
[1746404123131,0.22757084,94776.0,94775.0,0.07177933]
[1746404124304,0.22757084,94776.0,94775.0,0.07477933]
[1746404125200,0.22757084,94776.0,94775.0,0.09477933]
[1746404126316,0.21102591,94776.0,94775.0,0.09477933]
[1746404128347,0.21102591,94776.0,94775.0,0.08023848]
[1746404128479,0.21102591,94776.0,94775.0,0.09477933]
[1746404129146,0.22757194,94776.0,94775.0,0.09477933]
[1746404131355,0.25665263,94776.0,94775.0,0.09477933]
[1746404133060,0.22757194,94776.0,94775.0,0.09477933]
[1746404136386,0.21102591,94776.0,94775.0,0.09477933]
[1746404139280,0.2275724,94776.0,94775.0,0.09477933]
[1746404145986,0.21102591,94776.0,94775.0,0.09477933]
[1746404146635,0.21102591,94776.0,94775.0,0.03754085]
[1746404147463,0.21102591,94776.0,94775.0,0.03661792]
[1746404149068,0.22757217,94776.0,94775.0,0.03661792]
[1746404152165,0.24740022,94776.0,94775.0,0.03661792]
[1746404152470,0.22757217,94776.0,94775.0,0.03661792]
[1746404156189,0.21102591,94776.0,94775.0,0.03661792]
[1746404156413,0.22157469,94777.0,94775.0,0.03661792]
[1746404156621,0.01054974,94789.0,94784.0,0.01454085]
[1746404156795,0.01054952,94791.0,94788.0,0.01454085]
[1746404156998,0.22154125,94791.0,94790.0,0.01454085]
[1746404159156,0.23808427,94791.0,94790.0,0.01454085]
[1746404159514,0.23808427,94791.0,94790.0,0.01854085]
[1746404159915,0.23808427,94791.0,94790.0,0.06615862]
[1746404160604,0.2050002,94791.0,94790.0,0.08715862]
[1746404160893,0.21554972,94791.0,94790.0,0.08715862]
[1746404161275,0.21554972,94791.0,94790.0,0.1443971]
[1746404165043,0.21554972,94791.0,94790.0,0.19413484]
[1746404166142,0.1990067,94791.0,94790.0,0.19413484]
[1746404168267,0.1990067,94791.0,94790.0,0.09677933]
[1746404169125,0.1990067,94791.0,94790.0,0.08223848]
[1746404169332,0.21554946,94791.0,94790.0,0.08223848]
[1746404169534,0.21554946,94791.0,94790.0,0.08023649]
[1746404169667,0.1990067,94791.0,94790.0,0.08023649]
[1746404170708,0.1990067,94791.0,94790.0,0.02299801]
[1746404170709,0.21554969,94791.0,94790.0,0.02299801]
[1746404170972,0.21554969,94791.0,94790.0,0.00845716]
[1746404171544,0.21100385,94785.0,94784.0,0.01454085]
[1746404172489,0.21100385,94785.0,94784.0,0.03554085]
[1746404175404,0.21100385,94785.0,94784.0,0.03142085]
[1746404176481,0.21100385,94785.0,94784.0,0.021]
[1746404177251,0.21100385,94785.0,94784.0,0.01554085]
[1746404177859,0.21100385,94785.0,94784.0,0.01454085]
[1746404178075,0.21200385,94785.0,94784.0,0.03254085]
[1746404178438,0.21200385,94785.0,94784.0,0.03054085]
[1746404178640,0.21100385,94785.0,94784.0,0.01454085]
[1746404178762,0.21200385,94785.0,94784.0,0.03254085]
[1746404182514,0.21060593,94785.0,94784.0,0.03254085]
[1746404184554,0.17751827,94785.0,94784.0,0.03254085]
[1746404188812,0.17751827,94785.0,94784.0,0.08012425]
[1746404192355,0.001,94785.0,94784.0,0.08012425]
[1746404192836,0.001,94785.0,94784.0,0.11189325]
[1746404193519,0.001,94785.0,94784.0,0.16913173]
[1746404195502,0.21200385,94785.0,94784.0,0.16913173]
[1746404198081,0.001,94785.0,94784.0,0.16913173]
[1746404198279,0.001,94785.0,94784.0,0.21793173]
[1746404198672,4.568e-05,94792.0,94790.0,0.01454085]
[1746404198875,4.568e-05,94792.0,94791.0,0.06344085]
[1746404199474,4.568e-05,94792.0,94791.0,0.10804085]
[1746404199878,4.568e-05,94792.0,94791.0,0.13764345]
[1746404200081,0.00104568,94792.0,94791.0,0.15564345]
[1746404200337,0.00104568,94792.0,94791.0,0.17537439]
[1746404200725,4.568e-05,94792.0,94791.0,0.15837439]
[1746404200922,0.00104568,94792.0,94791.0,0.17937439]
[1746404201347,0.03378248,94802.0,94801.0,0.27160908]
[1746404201645,0.03423947,94802.0,94801.0,0.27160908]
[1746404201842,0.03423947,94802.0,94801.0,0.29134002]
[1746404202490,0.03423947,94802.0,94801.0,0.33644002]
[1746404203083,0.03423947,94802.0,94801.0,0.34244002]
[1746404203499,0.03423947,94802.0,94801.0,0.35644002]
[1746404203850,0.03423947,94802.0,94801.0,0.38819802]
[1746404204546,0.0035011,94881.0,94827.0,0.01454085]
[1746404204769,0.21081924,94868.0,94861.0,0.01454085]
[1746404204993,0.01054196,94859.0,94852.0,0.01454085]
[1746404205210,0.01054229,94856.0,94852.0,0.01454085]
[1746404205435,0.21085095,94854.0,94853.0,0.031742]
[1746404205681,0.21085095,94854.0,94853.0,0.04628285]
[1746404205904,0.55085095,94854.0,94853.0,0.04628285]
[1746404206153,0.55085095,94854.0,94853.0,0.01454085]
[1746404207062,0.5347,94853.0,94852.0,0.004]
[1746404207580,0.21089705,94833.0,94832.0,0.01454085]
[1746404208021,0.01054474,94834.0,94832.0,0.01454085]
[1746404208562,0.21089705,94833.0,94832.0,0.01454085]
[1746404208762,0.01054451,94836.0,94832.0,0.01454085]
[1746404208963,8.675e-05,94833.0,94832.0,0.01654085]
[1746404209308,8.675e-05,94833.0,94832.0,0.01454085]
[1746404209507,8.675e-05,94833.0,94832.0,0.01654085]
[1746404209725,8.675e-05,94833.0,94832.0,0.08177933]
[1746404210069,8.675e-05,94833.0,94832.0,0.07277933]
[1746404210269,8.675e-05,94833.0,94832.0,0.08277933]
[1746404211442,8.675e-05,94833.0,94832.0,0.08077933]
[1746404211752,8.675e-05,94833.0,94832.0,0.08377933]
[1746404213367,0.01054429,94838.0,94833.0,0.01054485]
[1746404213567,0.0105444,94837.0,94834.0,0.01454085]
[1746404213993,0.01054396,94841.0,94834.0,0.02508559]
[1746404214411,0.01054396,94841.0,94838.0,0.01454085]
[1746404214854,0.01054396,94841.0,94840.0,0.01454085]
[1746404215070,0.01054385,94842.0,94840.0,0.01454085]
[1746404215283,0.01054374,94843.0,94840.0,0.01454085]
[1746404215498,0.01054374,94843.0,94842.0,0.01454085]
[1746404215499,0.22141917,94843.0,94842.0,0.01454085]
[1746404216154,0.22141917,94843.0,94842.0,0.07069258]
[1746404216592,0.22141917,94843.0,94840.0,0.001]
[1746404216824,0.21087926,94841.0,94840.0,0.001]
[1746404217044,0.40397926,94841.0,94840.0,0.001]
[1746404217281,0.42972662,94841.0,94840.0,0.001]
[1746404217464,0.21090594,94829.0,94828.0,0.3492]
[1746404217665,0.31090594,94829.0,94828.0,0.3492]
[1746404218960,0.31190594,94829.0,94828.0,0.3492]
[1746404220243,0.31190594,94829.0,94828.0,0.3542]
[1746404220490,0.31090594,94829.0,94828.0,0.3542]
[1746404220901,0.31290594,94829.0,94828.0,0.3542]
[1746404224154,0.21290594,94829.0,94828.0,0.36874085]
[1746404225053,0.55290594,94829.0,94828.0,0.36874085]
[1746404226140,0.65290594,94829.0,94828.0,0.36874085]
[1746404226359,0.65290594,94829.0,94828.0,0.3542]
[1746404228765,0.65290594,94829.0,94828.0,0.36874085]
[1746404229994,0.55290594,94829.0,94828.0,0.42489258]
[1746404230219,0.21290594,94829.0,94828.0,0.42489258]
[1746404230421,0.21290594,94829.0,94828.0,0.45664858]
[1746404231863,0.21290594,94829.0,94828.0,0.47631992]
[1746404232292,0.002,94829.0,94828.0,0.47631992]
[1746404232966,0.002,94829.0,94828.0,0.47131992]
[1746404233167,0.002,94829.0,94828.0,0.47831992]
[1746404233764,0.002,94829.0,94828.0,0.47131992]
[1746404233988,0.0105444,94837.0,94828.0,0.48131992]
[1746404234236,0.0105444,94837.0,94835.0,0.01454085]
[1746404234456,0.01054451,94836.0,94834.0,0.01454085]
[1746404234682,0.01054485,94833.0,94830.0,0.01454085]
[1746404234936,0.01054463,94835.0,94830.0,0.02508603]
[1746404235170,0.01054463,94835.0,94832.0,0.01054496]
[1746404235402,0.01054463,94835.0,94833.0,0.01454085]
[1746404235600,0.01054463,94835.0,94833.0,0.03421789]
[1746404235959,0.01054463,94835.0,94833.0,0.01454085]
[1746404235960,0.21089482,94834.0,94833.0,0.01454085]
[1746404236235,0.01054485,94833.0,94829.0,0.02508614]
[1746404236401,0.01054463,94835.0,94833.0,0.009]
[1746404236932,0.01054451,94836.0,94834.0,0.01454085]
[1746404237094,0.01054451,94836.0,94835.0,0.01690822]
[1746404237295,0.22143488,94836.0,94835.0,0.01690822]
[1746404237553,0.22143488,94836.0,94835.0,0.07305995]
[1746404238140,0.22143488,94836.0,94835.0,0.07405995]
[1746404239164,0.18836579,94836.0,94835.0,0.07405995]
[1746404239537,0.1989103,94836.0,94835.0,0.08205995]
[1746404239942,0.1989103,94836.0,94835.0,0.07873995]
[1746404240759,0.1989103,94836.0,94835.0,0.11049295]
[1746404240967,0.55088133,94841.0,94835.0,0.11049295]
[1746404241190,0.22142788,94839.0,94835.0,0.12103758]
[1746404241411,0.22143022,94838.0,94835.0,0.12103758]
[1746404241967,0.2214015,94851.0,94847.0,0.01054329]
[1746404242171,0.21086136,94850.0,94848.0,0.01454085]
[1746404242347,0.01054351,94845.0,94843.0,0.01454085]
[1746404242966,0.22140921,94847.0,94845.0,0.01454085]
[1746404243534,0.01054329,94847.0,94845.0,0.01454085]
[1746404244543,0.01154329,94847.0,94845.0,0.01454085]
[1746404245000,0.001,94847.0,94845.0,0.22541019]
[1746404245543,0.001,94847.0,94845.0,0.23141019]
[1746404246167,0.001,94847.0,94846.0,0.07069258]
[1746404246778,0.0105414,94864.0,94862.0,0.01454085]
[1746404246954,0.0105414,94864.0,94863.0,0.07069258]
[1746404247427,0.22136953,94864.0,94863.0,0.07069258]
[1746404249385,0.22136953,94864.0,94863.0,0.11810428]
[1746404249796,0.22136953,94864.0,94863.0,0.12510428]
[1746404250742,0.32136953,94864.0,94863.0,0.12510428]
[1746404250960,0.32136953,94864.0,94863.0,0.11056343]
[1746404251616,0.22136953,94864.0,94863.0,0.12510428]
[1746404251833,0.66136953,94864.0,94863.0,0.07769258]
[1746404252695,0.66136953,94864.0,94863.0,0.07069258]
[1746404253159,0.66136953,94864.0,94863.0,0.07569258]
[1746404253385,0.66236953,94864.0,94863.0,0.07569258]
[1746404253607,0.44,94863.0,94862.0,0.04950064]
[1746404254487,0.44,94853.0,94852.0,0.01454085]
[1746404255449,0.65085258,94853.0,94852.0,0.01454085]
[1746404256093,0.6198191,94853.0,94852.0,0.01454085]
[1746404256686,0.6198191,94853.0,94851.0,0.04950064]
[1746404256687,0.21086592,94847.0,94846.0,0.01454085]
[1746404257676,0.22139384,94854.0,94846.0,0.01454085]
[1746404257876,0.01054307,94849.0,94848.0,0.01454085]
[1746404259308,0.01054274,94852.0,94848.0,0.02254085]
[1746404259506,0.01054274,94852.0,94850.0,0.01454085]
[1746404259725,0.22139778,94852.0,94850.0,0.01454085]
[1746404260047,0.22139778,94852.0,94849.0,0.01454085]
[1746404260219,0.21085925,94850.0,94849.0,0.01454085]
[1746404260630,0.21085925,94850.0,94848.0,0.01454085]
[1746404261031,0.21085925,94850.0,94848.0,0.01554085]
[1746404261657,0.01054285,94851.0,94848.0,0.01554085]
[1746404261658,0.01054285,94851.0,94850.0,0.01454085]
[1746404262028,0.01054274,94852.0,94850.0,0.01454085]
[1746404262226,0.01054262,94853.0,94850.0,0.02508381]
[1746404262427,0.01054262,94853.0,94852.0,0.01454085]
[1746404263514,0.01317829,94853.0,94852.0,0.01454085]
[1746404263824,0.01317829,94853.0,94852.0,0.07869258]
[1746404264245,0.08214481,94853.0,94852.0,0.07869258]
[1746404265749,0.08214481,94853.0,94852.0,0.02254085]
[1746404266600,0.42214481,94853.0,94852.0,0.02254085]
[1746404266832,0.41950914,94853.0,94852.0,0.02254085]
[1746404268514,0.41950914,94853.0,94852.0,0.01554085]
[1746404268720,0.41950914,94853.0,94852.0,0.02054085]
[1746404269076,0.41950914,94853.0,94852.0,0.01954085]
[1746404269291,0.42050914,94853.0,94852.0,0.01454085]
[1746404269504,0.42050914,94853.0,94852.0,0.02154085]
[1746404269704,0.41950914,94853.0,94852.0,0.02154085]
[1746404269919,0.41950914,94853.0,94852.0,0.01454085]
[1746404270119,0.01054262,94853.0,94852.0,0.01454085]
[1746404270375,0.21085035,94854.0,94852.0,0.02154085]
[1746404270602,0.21085035,94854.0,94852.0,0.02254085]
[1746404270785,0.34,94853.0,94852.0,0.02254085]
[1746404271431,0.34,94853.0,94852.0,0.01554085]
[1746404271742,0.34,94853.0,94852.0,0.02254085]
[1746404272436,0.21085035,94854.0,94852.0,0.02154085]
[1746404272664,0.21085035,94854.0,94852.0,0.07204149]
[1746404272788,0.21085035,94854.0,94852.0,0.07104149]
[1746404272995,0.21085035,94854.0,94852.0,0.07204149]
[1746404273203,0.21085035,94854.0,94852.0,0.06504149]
[1746404273452,0.21085035,94854.0,94852.0,0.06404149]
[1746404273673,0.21085035,94854.0,94852.0,0.06504149]
[1746404273834,0.00263562,94853.0,94852.0,0.06504149]
[1746404274031,0.07160214,94853.0,94852.0,0.05050064]
[1746404274230,0.07160214,94853.0,94852.0,0.06504149]
[1746404274446,0.06896652,94853.0,94852.0,0.06504149]
[1746404274644,0.06896652,94853.0,94852.0,0.07204149]
[1746404275081,0.06896652,94853.0,94852.0,0.06504149]
[1746404275229,0.07160237,94853.0,94852.0,0.07104149]
[1746404275433,0.07160237,94853.0,94852.0,0.07204149]
[1746404275666,0.07160237,94853.0,94852.0,0.02254085]
[1746404277305,0.41160237,94853.0,94852.0,0.02254085]
[1746404277648,0.40896652,94853.0,94852.0,0.02254085]
[1746404279633,0.34,94853.0,94852.0,0.02254085]
[1746404279877,0.40896652,94853.0,94852.0,0.02254085]
[1746404283012,0.37590111,94853.0,94852.0,0.02254085]
[1746404290255,0.37590111,94853.0,94852.0,0.07869258]
[1746404290682,0.30693459,94853.0,94852.0,0.07869258]
[1746404290895,0.37590111,94853.0,94852.0,0.07869258]
[1746404292239,0.42330111,94853.0,94852.0,0.07869258]
[1746404292593,0.46470111,94853.0,94852.0,0.07869258]
[1746404295735,0.46470111,94853.0,94852.0,0.008]
[1746404296557,0.46470111,94853.0,94852.0,0.001]
[1746404297094,0.46470111,94853.0,94852.0,0.006]
[1746404297401,0.46470111,94853.0,94852.0,0.001]
[1746404298079,0.22982577,94850.0,94849.0,0.04950064]
[1746404298405,0.30595925,94850.0,94849.0,0.04950064]
[1746404298612,0.40067313,94850.0,94849.0,0.04950064]
[1746404298777,0.37492577,94850.0,94849.0,0.04950064]
[1746404299183,0.71892577,94850.0,94849.0,0.04950064]
[1746404299391,0.71492577,94850.0,94849.0,0.04950064]
[1746404299770,0.71892577,94850.0,94849.0,0.04950064]
[1746404299975,0.71892577,94850.0,94849.0,0.002]
[1746404300311,0.71892577,94850.0,94835.0,0.04950064]
[1746404300533,0.61985689,94836.0,94835.0,0.04950064]
[1746404301450,0.61985689,94836.0,94835.0,0.05150064]
[1746404301864,0.61985689,94836.0,94835.0,0.05250064]
[1746404302464,0.61985689,94836.0,94835.0,0.003]
[1746404302667,0.61985689,94836.0,94835.0,0.001]
[1746404302895,0.61985689,94836.0,94835.0,0.006]
[1746404312445,0.55089037,94836.0,94835.0,0.006]
[1746404312654,0.61985689,94836.0,94835.0,0.006]
[1746404315166,0.61485689,94836.0,94835.0,0.006]
[1746404321683,0.27987913,94826.0,94825.0,0.04630285]
[1746404324088,0.61987913,94826.0,94825.0,0.04930285]
[1746404324519,0.61487913,94826.0,94825.0,0.04930285]
[1746404325149,0.58180813,94826.0,94825.0,0.05630285]
[1746404325502,0.58180813,94826.0,94825.0,0.04930285]
[1746404326207,0.58180813,94826.0,94825.0,0.05530285]
[1746404326745,0.58180813,94826.0,94825.0,0.05230285]
[1746404327301,0.58180813,94826.0,94825.0,0.05530285]
[1746404327503,0.58180813,94826.0,94825.0,0.04930285]
[1746404327889,0.01054407,94840.0,94828.0,0.01454085]
[1746404328210,0.00264,94852.0,94834.0,0.01454085]
[1746404328514,0.213495,94852.0,94849.0,0.01454085]
[1746404328633,0.21085925,94850.0,94849.0,0.01454085]
[1746404328833,0.01318274,94852.0,94849.0,0.01454085]
[1746404329075,0.00264,94852.0,94849.0,0.01454085]
[1746404329255,0.21085925,94850.0,94849.0,0.01454085]
[1746404329896,0.00264,94852.0,94849.0,0.02508392]
[1746404330104,0.00264,94852.0,94849.0,0.01454085]
[1746404330257,0.00264,94852.0,94849.0,0.04629085]
[1746404330464,0.00272184,94852.0,94851.0,0.01454085]
[1746404330648,0.21357664,94852.0,94851.0,0.01454085]
[1746404331273,0.55357664,94852.0,94851.0,0.01454085]
[1746404331764,0.55357664,94852.0,94851.0,0.01954085]
[1746404332502,0.00272184,94852.0,94851.0,0.07569258]
[1746404333669,0.00272184,94852.0,94851.0,0.07469258]
[1746404334069,0.00272184,94852.0,94851.0,0.08369258]
[1746404335128,0.00272184,94852.0,94851.0,0.12979258]
[1746404338427,0.21357664,94852.0,94851.0,0.12979258]
[1746404339433,0.55357664,94852.0,94851.0,0.12579258]
[1746404339712,0.55357664,94852.0,94851.0,0.12879258]
[1746404339888,0.55357664,94852.0,94851.0,0.11979258]
[1746404340385,0.55357664,94852.0,94851.0,0.12779258]
[1746404345933,0.55357664,94852.0,94851.0,0.15954058]
[1746404346340,0.55357664,94852.0,94851.0,0.09889973]
[1746404346572,0.52051406,94852.0,94851.0,0.09889973]
[1746404347155,0.52051406,94852.0,94851.0,0.11344058]
[1746404347367,0.52051406,94852.0,94851.0,0.10544058]